[Event "Titled Tuesday Blitz March 28 Late 2023"]
[White "Herrera Reyes, Jose Antonio"]
[Black "Bluebaum, Matthias"]
[WhiteFideId "2274914"]
[BlackFideId "24651516"]
[WhiteElo "2273"]
[BlackElo "2638"]
[Result "0-1"]
[Round "03"]
[TimeControl "180+2"]
[Date "2023.03.28"]
[WhiteClock "0:00:09"]
[BlackClock "0:00:07"]

1. Nf3 {[%clk 0:02:58]}  d5 {[%clk 0:03:00]} 2. g3 {[%clk 0:02:58]}  Nf6 {[%clk 0:02:59]} 3. Bg2 {[%clk 0:02:59]}  e6 {[%clk 0:03:00]} 4. b3 {[%clk 0:02:58]}  Bd6 {[%clk 0:02:59]} 5. Bb2 {[%clk 0:02:59]}  O-O {[%clk 0:03:00]} 6. d3 {[%clk 0:02:58]}  c5 {[%clk 0:02:58]} 7. Nbd2 {[%clk 0:02:58]}  Nc6 {[%clk 0:02:58]} 8. e4 {[%clk 0:02:58]}  d4 {[%clk 0:02:58]} 9. O-O {[%clk 0:02:56]}  e5 {[%clk 0:02:58]} 10. a4 {[%clk 0:02:55]}  b6 {[%clk 0:02:57]} 11. Nc4 {[%clk 0:02:55]}  Bc7 {[%clk 0:02:58]} 12. Bc1 {[%clk 0:02:54]}  a6 {[%clk 0:02:54]} 13. h3 {[%clk 0:02:51]}  Bd7 {[%clk 0:02:46]} 14. Nh2 {[%clk 0:02:50]}  b5 {[%clk 0:02:45]} 15. Nd2 {[%clk 0:02:45]}  Qc8 {[%clk 0:02:32]} 16. g4 {[%clk 0:02:44]}  Ne7 {[%clk 0:02:21]} 17. Ba3 {[%clk 0:02:43]}  Bd6 {[%clk 0:02:19]} 18. f4 {[%clk 0:02:09]}  Ng6 {[%clk 0:02:17]} 19. f5 {[%clk 0:02:05]}  Nf4 {[%clk 0:02:17]} 20. Ndf3 {[%clk 0:02:00]}  Qc7 {[%clk 0:02:09]} 21. Bc1 {[%clk 0:01:57]}  bxa4 {[%clk 0:02:02]} 22. bxa4 {[%clk 0:01:57]}  c4 {[%clk 0:01:58]} 23. Bxf4 {[%clk 0:01:52]}  exf4 {[%clk 0:01:58]} 24. g5 {[%clk 0:01:39]}  Nh5 {[%clk 0:01:56]} 25. e5 {[%clk 0:01:38]}  Bc5 {[%clk 0:01:48]} 26. f6 {[%clk 0:01:33]}  Ng3 {[%clk 0:01:45]} 27. Re1 {[%clk 0:01:30]}  Rae8 {[%clk 0:01:43]} 28. Qd2 {[%clk 0:01:28]}  Nh5 {[%clk 0:01:39]} 29. Ng4 {[%clk 0:01:27]}  g6 {[%clk 0:01:30]} 30. Rab1 {[%clk 0:01:22]}  a5 {[%clk 0:01:20]} 31. Kh2 {[%clk 0:01:12]}  Bb4 {[%clk 0:01:16]} 32. Qf2 {[%clk 0:01:07]}  Bxe1 {[%clk 0:01:15]} 33. Rxe1 {[%clk 0:01:07]}  cxd3 {[%clk 0:01:12]} 34. cxd3 {[%clk 0:01:08]}  Bc6 {[%clk 0:01:12]} 35. Rc1 {[%clk 0:01:07]}  Qb7 {[%clk 0:01:12]} 36. Nh6+ {[%clk 0:01:00]}  Kh8 {[%clk 0:01:12]} 37. e6 {[%clk 0:00:51]}  Rxe6 {[%clk 0:00:58]} 38. Nxd4 {[%clk 0:00:51]}  Bxg2 {[%clk 0:00:21]} 39. Nxe6 {[%clk 0:00:51]}  fxe6 {[%clk 0:00:19]} 40. Qxg2 {[%clk 0:00:46]}  f3 {[%clk 0:00:19]} 41. Qc2 {[%clk 0:00:43]}  Qb8+ {[%clk 0:00:17]} 42. Qc7 {[%clk 0:00:43]}  f2 {[%clk 0:00:04]} 43. Qxb8 {[%clk 0:00:30]}  Rxb8 {[%clk 0:00:05]} 44. Kg2 {[%clk 0:00:30]}  Nf4+ {[%clk 0:00:05]} 45. Kf1 {[%clk 0:00:22]}  Nxh3 {[%clk 0:00:03]} 46. Kg2 {[%clk 0:00:13]}  Nxg5 {[%clk 0:00:02]} 47. Kxf2 {[%clk 0:00:12]}  Rf8 {[%clk 0:00:03]} 48. Ng4 {[%clk 0:00:12]}  h5 {[%clk 0:00:04]} 49. Ne5 {[%clk 0:00:13]}  Rxf6+ {[%clk 0:00:04]} 50. Ke3 {[%clk 0:00:14]}  Kg7 {[%clk 0:00:04]} 51. Rc7+ {[%clk 0:00:14]}  Kh6 {[%clk 0:00:05]} 52. d4 {[%clk 0:00:14]}  Rf5 {[%clk 0:00:05]} 53. Nd7 {[%clk 0:00:13]}  Rf3+ {[%clk 0:00:05]} 54. Ke2 {[%clk 0:00:13]}  Rf7 {[%clk 0:00:06]} 55. Ke3 {[%clk 0:00:13]}  h4 {[%clk 0:00:06]} 56. Rb7 {[%clk 0:00:09]}  h3 {[%clk 0:00:07]} 0-1


[Site "https://www.chess.com"]

[Event "Titled Tuesday Blitz March 28 Late 2023"]
[White "Duda, Jan-Krzysztof"]
[Black "Lamard, Guillaume"]
[WhiteFideId "1170546"]
[BlackFideId "600261"]
[WhiteElo "2790"]
[BlackElo "2413"]
[Result "1-0"]
[Round "03"]
[TimeControl "180+2"]
[Date "2023.03.28"]
[WhiteClock "0:00:18"]
[BlackClock "0:00:10"]

1. e4 {[%clk 0:03:00]}  c6 {[%clk 0:03:00]} 2. Nf3 {[%clk 0:02:58]}  d5 {[%clk 0:03:00]} 3. d3 {[%clk 0:02:59]}  dxe4 {[%clk 0:02:59]} 4. dxe4 {[%clk 0:03:00]}  Qxd1+ {[%clk 0:02:59]} 5. Kxd1 {[%clk 0:03:01]}  Nf6 {[%clk 0:02:58]} 6. Nbd2 {[%clk 0:02:59]}  g6 {[%clk 0:02:53]} 7. h3 {[%clk 0:02:56]}  Bg7 {[%clk 0:02:52]} 8. a4 {[%clk 0:02:55]}  a5 {[%clk 0:02:41]} 9. c3 {[%clk 0:02:45]}  O-O {[%clk 0:02:40]} 10. Kc2 {[%clk 0:02:37]}  Nbd7 {[%clk 0:02:25]} 11. Nd4 {[%clk 0:02:37]}  Nc5 {[%clk 0:02:20]} 12. f3 {[%clk 0:02:36]}  Bh6 {[%clk 0:02:06]} 13. Bc4 {[%clk 0:02:28]}  Rd8 {[%clk 0:01:59]} 14. h4 {[%clk 0:02:22]}  e5 {[%clk 0:01:47]} 15. N4b3 {[%clk 0:02:19]}  Ne6 {[%clk 0:01:47]} 16. g4 {[%clk 0:02:06]}  Bf4 {[%clk 0:01:46]} 17. Bf1 {[%clk 0:02:02]}  Bxd2 {[%clk 0:01:18]} 18. Bxd2 {[%clk 0:02:01]}  h5 {[%clk 0:01:18]} 19. g5 {[%clk 0:01:54]}  Nd7 {[%clk 0:01:16]} 20. Be3 {[%clk 0:01:48]}  Kf8 {[%clk 0:01:13]} 21. Bc4 {[%clk 0:01:46]}  Ke7 {[%clk 0:01:10]} 22. Rhd1 {[%clk 0:01:42]}  b6 {[%clk 0:01:08]} 23. Bxe6 {[%clk 0:01:27]}  fxe6 {[%clk 0:01:07]} 24. Rxd7+ {[%clk 0:01:27]}  Bxd7 {[%clk 0:01:04]} 25. Bxb6 {[%clk 0:01:28]}  Rdb8 {[%clk 0:00:56]} 26. Bc7 {[%clk 0:01:27]}  Rb7 {[%clk 0:00:54]} 27. Bxe5 {[%clk 0:01:28]}  c5 {[%clk 0:00:41]} 28. Nxc5 {[%clk 0:01:27]}  Rb6 {[%clk 0:00:41]} 29. Rd1 {[%clk 0:01:21]}  Be8 {[%clk 0:00:41]} 30. Bf6+ {[%clk 0:00:49]}  Kf7 {[%clk 0:00:37]} 31. Rd8 {[%clk 0:00:49]}  Rbb8 {[%clk 0:00:20]} 32. Rxb8 {[%clk 0:00:30]}  Rxb8 {[%clk 0:00:21]} 33. b3 {[%clk 0:00:30]}  Rc8 {[%clk 0:00:21]} 34. Nd3 {[%clk 0:00:30]}  Kf8 {[%clk 0:00:17]} 35. Bd4 {[%clk 0:00:24]}  Rb8 {[%clk 0:00:15]} 36. Bc5+ {[%clk 0:00:22]}  Kg7 {[%clk 0:00:14]} 37. Ne5 {[%clk 0:00:23]}  Rd8 {[%clk 0:00:12]} 38. Bb6 {[%clk 0:00:23]}  Ra8 {[%clk 0:00:12]} 39. Nc4 {[%clk 0:00:19]}  Bd7 {[%clk 0:00:09]} 40. Bxa5 {[%clk 0:00:18]}  Rf8 {[%clk 0:00:09]} 41. Ne5 {[%clk 0:00:18]}  Bc8 {[%clk 0:00:09]} 42. Bb4 {[%clk 0:00:16]}  Rd8 {[%clk 0:00:08]} 43. Be7 {[%clk 0:00:16]}  Re8 {[%clk 0:00:08]} 44. Bf6+ {[%clk 0:00:17]}  Kh7 {[%clk 0:00:08]} 45. b4 {[%clk 0:00:17]}  Ba6 {[%clk 0:00:08]} 46. b5 {[%clk 0:00:17]}  Bb7 {[%clk 0:00:08]} 47. a5 {[%clk 0:00:17]}  Ra8 {[%clk 0:00:08]} 48. a6 {[%clk 0:00:18]}  Bxa6 {[%clk 0:00:09]} 49. bxa6 {[%clk 0:00:19]}  Rxa6 {[%clk 0:00:09]} 50. c4 {[%clk 0:00:19]}  Ra2+ {[%clk 0:00:09]} 51. Kd3 {[%clk 0:00:19]}  Rh2 {[%clk 0:00:10]} 52. c5 {[%clk 0:00:18]}  Rxh4 {[%clk 0:00:11]} 53. c6 {[%clk 0:00:18]}  Rh1 {[%clk 0:00:11]} 54. c7 {[%clk 0:00:17]}  Rc1 {[%clk 0:00:12]} 55. Nc4 {[%clk 0:00:17]}  Rd1+ {[%clk 0:00:10]} 56. Nd2 {[%clk 0:00:17]}  Rc1 {[%clk 0:00:10]} 57. Bc3 {[%clk 0:00:18]} 1-0


[Site "https://www.chess.com"]

[Event "Titled Tuesday Blitz March 28 Late 2023"]
[White "Schmakel, Sam"]
[Black "Xiong, Jeffery"]
[WhiteFideId "2039311"]
[BlackFideId "2047640"]
[WhiteElo "2356"]
[BlackElo "2726"]
[Result "0-1"]
[Round "03"]
[TimeControl "180+2"]
[Date "2023.03.28"]
[WhiteClock "0:00:01"]
[BlackClock "0:01:55"]

1. Nf3 {[%clk 0:03:00]}  d5 {[%clk 0:03:00]} 2. g3 {[%clk 0:03:00]}  g6 {[%clk 0:02:59]} 3. Bg2 {[%clk 0:03:00]}  Bg7 {[%clk 0:03:00]} 4. O-O {[%clk 0:03:01]}  e5 {[%clk 0:03:00]} 5. d3 {[%clk 0:03:01]}  Ne7 {[%clk 0:03:01]} 6. Nc3 {[%clk 0:03:02]}  Nbc6 {[%clk 0:02:59]} 7. e4 {[%clk 0:03:01]}  d4 {[%clk 0:02:56]} 8. Ne2 {[%clk 0:02:59]}  h6 {[%clk 0:02:56]} 9. c3 {[%clk 0:02:50]}  O-O {[%clk 0:02:55]} 10. cxd4 {[%clk 0:02:50]}  exd4 {[%clk 0:02:55]} 11. a3 {[%clk 0:02:50]}  a5 {[%clk 0:02:55]} 12. b3 {[%clk 0:02:33]}  Be6 {[%clk 0:02:55]} 13. h3 {[%clk 0:02:28]}  Na7 {[%clk 0:02:42]} 14. Bb2 {[%clk 0:02:20]}  c5 {[%clk 0:02:42]} 15. b4 {[%clk 0:02:17]}  b6 {[%clk 0:02:40]} 16. Rc1 {[%clk 0:02:10]}  Rc8 {[%clk 0:02:40]} 17. bxc5 {[%clk 0:02:01]}  bxc5 {[%clk 0:02:40]} 18. Nf4 {[%clk 0:02:02]}  Bd7 {[%clk 0:02:41]} 19. Nd2 {[%clk 0:02:02]}  Nb5 {[%clk 0:02:40]} 20. Nc4 {[%clk 0:01:58]}  Nc3 {[%clk 0:02:40]} 21. Bxc3 {[%clk 0:01:51]}  dxc3 {[%clk 0:02:41]} 22. e5 {[%clk 0:01:50]}  Nc6 {[%clk 0:02:36]} 23. Re1 {[%clk 0:01:11]}  Rb8 {[%clk 0:02:35]} 24. e6 {[%clk 0:00:57]}  fxe6 {[%clk 0:02:36]} 25. Nxe6 {[%clk 0:00:55]}  Bxe6 {[%clk 0:02:36]} 26. Rxe6 {[%clk 0:00:56]}  Nd4 {[%clk 0:02:33]} 27. Rxg6 {[%clk 0:00:56]}  Qe7 {[%clk 0:02:33]} 28. Bd5+ {[%clk 0:00:48]}  Kh8 {[%clk 0:02:32]} 29. Be4 {[%clk 0:00:49]}  c2 {[%clk 0:02:32]} 30. Qd2 {[%clk 0:00:35]}  Nb3 {[%clk 0:02:31]} 31. Rxh6+ {[%clk 0:00:30]}  Kg8 {[%clk 0:02:32]} 32. Bd5+ {[%clk 0:00:28]}  Rf7 {[%clk 0:02:32]} 33. Qxc2 {[%clk 0:00:19]}  Bxh6 {[%clk 0:02:32]} 34. Rb1 {[%clk 0:00:20]}  a4 {[%clk 0:02:32]} 35. Qd1 {[%clk 0:00:14]}  Kh7 {[%clk 0:02:21]} 36. Bxf7 {[%clk 0:00:10]}  Qxf7 {[%clk 0:02:22]} 37. Qg4 {[%clk 0:00:11]}  Rf8 {[%clk 0:02:20]} 38. Rb2 {[%clk 0:00:11]}  Nd2 {[%clk 0:02:12]} 39. Qe2 {[%clk 0:00:05]}  Nxc4 {[%clk 0:02:06]} 40. dxc4 {[%clk 0:00:05]}  Bg7 {[%clk 0:02:07]} 41. Rb6 {[%clk 0:00:03]}  Qf3 {[%clk 0:01:54]} 42. Qc2+ {[%clk 0:00:01]}  Kh8 {[%clk 0:01:55]} 43. Rb7 {[%clk 0:00:01]}  Qxb7 {[%clk 0:01:55]} 0-1


[Site "https://www.chess.com"]

[Event "Titled Tuesday Blitz March 28 Late 2023"]
[White "Sadhwani, Raunak"]
[Black "EREBUNI91"]
[WhiteFideId "35093487"]
[WhiteElo "2631"]
[BlackElo "2710"]
[Result "1-0"]
[Round "03"]
[TimeControl "180+2"]
[Date "2023.03.28"]
[WhiteClock "0:00:11"]
[BlackClock "0:00:08"]

1. Nf3 {[%clk 0:03:00]}  d5 {[%clk 0:02:59]} 2. b3 {[%clk 0:03:00]}  Nf6 {[%clk 0:02:59]} 3. Bb2 {[%clk 0:02:58]}  e6 {[%clk 0:02:59]} 4. g3 {[%clk 0:02:58]}  b6 {[%clk 0:02:59]} 5. Bg2 {[%clk 0:02:58]}  Bb7 {[%clk 0:03:00]} 6. O-O {[%clk 0:02:59]}  Be7 {[%clk 0:03:00]} 7. c4 {[%clk 0:03:00]}  O-O {[%clk 0:03:00]} 8. e3 {[%clk 0:03:00]}  Nbd7 {[%clk 0:03:01]} 9. Qe2 {[%clk 0:03:00]}  c5 {[%clk 0:03:01]} 10. d3 {[%clk 0:02:58]}  Rc8 {[%clk 0:03:02]} 11. Nc3 {[%clk 0:02:54]}  Qc7 {[%clk 0:03:02]} 12. Rad1 {[%clk 0:02:52]}  Rfd8 {[%clk 0:03:02]} 13. Rc1 {[%clk 0:02:39]}  Qb8 {[%clk 0:03:01]} 14. cxd5 {[%clk 0:02:37]}  Nxd5 {[%clk 0:03:00]} 15. Ne4 {[%clk 0:02:29]}  N7f6 {[%clk 0:02:57]} 16. Ne5 {[%clk 0:02:19]}  Nb4 {[%clk 0:02:39]} 17. a3 {[%clk 0:02:10]}  Nxe4 {[%clk 0:01:55]} 18. axb4 {[%clk 0:01:49]}  Nf6 {[%clk 0:01:51]} 19. Bxb7 {[%clk 0:01:43]}  Qxb7 {[%clk 0:01:50]} 20. bxc5 {[%clk 0:01:44]}  bxc5 {[%clk 0:01:51]} 21. Qc2 {[%clk 0:01:38]}  Rb8 {[%clk 0:01:46]} 22. Ba3 {[%clk 0:01:33]}  Nd7 {[%clk 0:01:11]} 23. Nxd7 {[%clk 0:01:08]}  Rxd7 {[%clk 0:01:12]} 24. Rb1 {[%clk 0:01:08]}  g6 {[%clk 0:01:03]} 25. Rfd1 {[%clk 0:01:06]}  Qb5 {[%clk 0:00:54]} 26. Rd2 {[%clk 0:00:33]}  Rbd8 {[%clk 0:00:54]} 27. Rbd1 {[%clk 0:00:33]}  Rb8 {[%clk 0:00:53]} 28. d4 {[%clk 0:00:29]}  Qxb3 {[%clk 0:00:17]} 29. Bxc5 {[%clk 0:00:29]}  Qxc2 {[%clk 0:00:12]} 30. Rxc2 {[%clk 0:00:29]}  Rc8 {[%clk 0:00:12]} 31. Rdc1 {[%clk 0:00:27]}  Rdc7 {[%clk 0:00:13]} 32. Kf1 {[%clk 0:00:27]}  a5 {[%clk 0:00:13]} 33. Ke2 {[%clk 0:00:27]}  a4 {[%clk 0:00:13]} 34. Kd3 {[%clk 0:00:27]}  Bxc5 {[%clk 0:00:14]} 35. Rxc5 {[%clk 0:00:23]}  Rxc5 {[%clk 0:00:14]} 36. Rxc5 {[%clk 0:00:24]}  Rb8 {[%clk 0:00:13]} 37. Ke2 {[%clk 0:00:17]}  Rb2+ {[%clk 0:00:13]} 38. Kf3 {[%clk 0:00:18]}  Kg7 {[%clk 0:00:13]} 39. Ra5 {[%clk 0:00:17]}  Ra2 {[%clk 0:00:13]} 40. g4 {[%clk 0:00:18]}  g5 {[%clk 0:00:13]} 41. Rxg5+ {[%clk 0:00:18]}  Kf6 {[%clk 0:00:14]} 42. Ra5 {[%clk 0:00:18]}  a3 {[%clk 0:00:14]} 43. h4 {[%clk 0:00:19]}  Ra1 {[%clk 0:00:14]} 44. Kf4 {[%clk 0:00:19]}  a2 {[%clk 0:00:11]} 45. Ra7 {[%clk 0:00:19]}  h6 {[%clk 0:00:09]} 46. f3 {[%clk 0:00:15]}  Kg6 {[%clk 0:00:09]} 47. h5+ {[%clk 0:00:15]}  Kf6 {[%clk 0:00:09]} 48. Ke4 {[%clk 0:00:13]}  Kg7 {[%clk 0:00:07]} 49. f4 {[%clk 0:00:09]}  Rg1 {[%clk 0:00:07]} 50. Rxa2 {[%clk 0:00:08]}  Rxg4 {[%clk 0:00:07]} 51. Ra5 {[%clk 0:00:09]}  Kf6 {[%clk 0:00:07]} 52. Kf3 {[%clk 0:00:05]}  Rg1 {[%clk 0:00:06]} 53. Rb5 {[%clk 0:00:03]}  Rd1 {[%clk 0:00:06]} 54. Ke4 {[%clk 0:00:04]}  Rh1 {[%clk 0:00:06]} 55. Ra5 {[%clk 0:00:04]}  Rh2 {[%clk 0:00:06]} 56. Kd3 {[%clk 0:00:03]}  Rh1 {[%clk 0:00:07]} 57. Rc5 {[%clk 0:00:04]}  Rh2 {[%clk 0:00:07]} 58. Ke4 {[%clk 0:00:04]}  Rh1 {[%clk 0:00:07]} 59. Kf3 {[%clk 0:00:04]}  Rh2 {[%clk 0:00:07]} 60. Kg4 {[%clk 0:00:05]}  Rh1 {[%clk 0:00:07]} 61. Kg3 {[%clk 0:00:05]}  Rg1+ {[%clk 0:00:07]} 62. Kf3 {[%clk 0:00:05]}  Rh1 {[%clk 0:00:08]} 63. Kg2 {[%clk 0:00:05]}  Rd1 {[%clk 0:00:08]} 64. Kf2 {[%clk 0:00:06]}  Rd2+ {[%clk 0:00:08]} 65. Kg3 {[%clk 0:00:06]}  Rd3 {[%clk 0:00:08]} 66. Kf3 {[%clk 0:00:06]}  Rd2 {[%clk 0:00:09]} 67. Ke4 {[%clk 0:00:06]}  Rh2 {[%clk 0:00:09]} 68. Rb5 {[%clk 0:00:06]}  Rh1 {[%clk 0:00:09]} 69. d5 {[%clk 0:00:07]}  Rxh5 {[%clk 0:00:08]} 70. Rc5 {[%clk 0:00:06]}  Rxd5 {[%clk 0:00:05]} 71. Rc1 {[%clk 0:00:07]}  h5 {[%clk 0:00:05]} 72. Kf3 {[%clk 0:00:07]}  Ra5 {[%clk 0:00:05]} 73. Rh1 {[%clk 0:00:07]}  Kg6 {[%clk 0:00:05]} 74. Rg1+ {[%clk 0:00:08]}  Kf6 {[%clk 0:00:06]} 75. Rh1 {[%clk 0:00:08]}  Rb5 {[%clk 0:00:06]} 76. Rh2 {[%clk 0:00:09]}  e5 {[%clk 0:00:07]} 77. Rxh5 {[%clk 0:00:07]}  e4+ {[%clk 0:00:07]} 78. Kg4 {[%clk 0:00:08]}  Rxh5 {[%clk 0:00:01]} 79. Kxh5 {[%clk 0:00:09]}  Ke6 {[%clk 0:00:02]} 80. Kg5 {[%clk 0:00:09]}  Kd5 {[%clk 0:00:02]} 81. Kf5 {[%clk 0:00:08]}  f6 {[%clk 0:00:02]} 82. Kxf6 {[%clk 0:00:08]}  Kc4 {[%clk 0:00:03]} 83. Kg5 {[%clk 0:00:06]}  Kd3 {[%clk 0:00:04]} 84. f5 {[%clk 0:00:07]}  Kxe3 {[%clk 0:00:05]} 85. f6 {[%clk 0:00:07]}  Kd2 {[%clk 0:00:04]} 86. f7 {[%clk 0:00:08]}  e3 {[%clk 0:00:05]} 87. f8=Q {[%clk 0:00:09]}  e2 {[%clk 0:00:06]} 88. Qd6+ {[%clk 0:00:10]}  Kc2 {[%clk 0:00:06]} 89. Qc5+ {[%clk 0:00:10]}  Kd1 {[%clk 0:00:07]} 90. Qd4+ {[%clk 0:00:10]}  Kc2 {[%clk 0:00:08]} 91. Qe3 {[%clk 0:00:11]}  Kd1 {[%clk 0:00:08]} 92. Qd3+ {[%clk 0:00:11]} 1-0


[Site "https://www.chess.com"]

[Event "Titled Tuesday Blitz March 28 Late 2023"]
[White "Korchmar, Vasiliy"]
[Black "Martinez Alcantara, Jose Eduardo"]
[WhiteFideId "24131750"]
[BlackFideId "3805662"]
[WhiteElo "2370"]
[BlackElo "2712"]
[Result "0-1"]
[Round "03"]
[TimeControl "180+2"]
[Date "2023.03.28"]
[WhiteClock "0:00:01"]
[BlackClock "0:01:00"]

1. e4 {[%clk 0:03:00]}  c5 {[%clk 0:02:59]} 2. Nf3 {[%clk 0:03:00]}  d6 {[%clk 0:03:00]} 3. d4 {[%clk 0:03:00]}  cxd4 {[%clk 0:03:01]} 4. Nxd4 {[%clk 0:03:01]}  Nf6 {[%clk 0:03:02]} 5. Nc3 {[%clk 0:03:02]}  a6 {[%clk 0:03:02]} 6. Be2 {[%clk 0:03:02]}  e5 {[%clk 0:03:02]} 7. Nb3 {[%clk 0:03:02]}  Be7 {[%clk 0:03:03]} 8. O-O {[%clk 0:03:02]}  O-O {[%clk 0:03:01]} 9. Be3 {[%clk 0:03:03]}  Be6 {[%clk 0:03:01]} 10. Nd5 {[%clk 0:03:03]}  Nbd7 {[%clk 0:03:00]} 11. Qd3 {[%clk 0:03:02]}  Rc8 {[%clk 0:02:53]} 12. a4 {[%clk 0:02:54]}  Bxd5 {[%clk 0:02:46]} 13. exd5 {[%clk 0:02:55]}  Qc7 {[%clk 0:02:46]} 14. c4 {[%clk 0:02:46]}  a5 {[%clk 0:02:45]} 15. Rac1 {[%clk 0:02:37]}  Rfe8 {[%clk 0:02:42]} 16. Kh1 {[%clk 0:02:27]}  Bf8 {[%clk 0:02:38]} 17. f4 {[%clk 0:02:25]}  exf4 {[%clk 0:02:32]} 18. Bxf4 {[%clk 0:02:24]}  Qb6 {[%clk 0:02:32]} 19. Bf3 {[%clk 0:01:53]}  g6 {[%clk 0:02:06]} 20. Rc2 {[%clk 0:01:23]}  Bg7 {[%clk 0:02:02]} 21. Nd4 {[%clk 0:01:09]}  Nh5 {[%clk 0:01:48]} 22. Bxh5 {[%clk 0:01:03]}  Bxd4 {[%clk 0:01:48]} 23. Bg4 {[%clk 0:00:58]}  f5 {[%clk 0:01:37]} 24. Bxf5 {[%clk 0:00:57]}  gxf5 {[%clk 0:01:37]} 25. Qxf5 {[%clk 0:00:58]}  Nf8 {[%clk 0:01:20]} 26. Bh6 {[%clk 0:00:44]}  Qc7 {[%clk 0:01:15]} 27. Qg4+ {[%clk 0:00:05]}  Bg7 {[%clk 0:01:15]} 28. c5 {[%clk 0:00:03]}  Ng6 {[%clk 0:00:58]} 29. Bxg7 {[%clk 0:00:02]}  Qxg7 {[%clk 0:00:59]} 30. c6 {[%clk 0:00:01]}  b6 {[%clk 0:01:00]} 0-1


[Site "https://www.chess.com"]

[Event "Titled Tuesday Blitz March 28 Late 2023"]
[White "Maghsoodloo, Parham"]
[Black "Javakhadze, Zurab"]
[WhiteFideId "12539929"]
[BlackFideId "13603647"]
[WhiteElo "2647"]
[BlackElo "2381"]
[Result "1-0"]
[Round "03"]
[TimeControl "180+2"]
[Date "2023.03.28"]
[WhiteClock "0:01:10"]
[BlackClock "0:00:19"]

1. d4 {[%clk 0:02:59]}  d5 {[%clk 0:02:57]} 2. c4 {[%clk 0:02:59]}  e6 {[%clk 0:02:58]} 3. cxd5 {[%clk 0:02:59]}  exd5 {[%clk 0:02:57]} 4. Nc3 {[%clk 0:03:00]}  c6 {[%clk 0:02:58]} 5. Bf4 {[%clk 0:03:00]}  Be7 {[%clk 0:02:52]} 6. e3 {[%clk 0:02:58]}  Bf5 {[%clk 0:02:48]} 7. Nge2 {[%clk 0:02:50]}  Nf6 {[%clk 0:02:41]} 8. Ng3 {[%clk 0:02:49]}  Bg6 {[%clk 0:02:37]} 9. h4 {[%clk 0:02:49]}  h6 {[%clk 0:02:35]} 10. h5 {[%clk 0:02:49]}  Bh7 {[%clk 0:02:35]} 11. Bd3 {[%clk 0:02:50]}  Bxd3 {[%clk 0:02:29]} 12. Qxd3 {[%clk 0:02:51]}  Bd6 {[%clk 0:02:06]} 13. Bxd6 {[%clk 0:02:47]}  Qxd6 {[%clk 0:02:06]} 14. Nf5 {[%clk 0:02:48]}  Qf8 {[%clk 0:02:07]} 15. O-O-O {[%clk 0:02:23]}  Nbd7 {[%clk 0:02:05]} 16. e4 {[%clk 0:02:23]}  dxe4 {[%clk 0:01:59]} 17. Nxe4 {[%clk 0:02:23]}  O-O-O {[%clk 0:01:59]} 18. Ned6+ {[%clk 0:02:23]}  Kb8 {[%clk 0:01:43]} 19. Qb3 {[%clk 0:02:23]}  Nb6 {[%clk 0:01:43]} 20. Nxf7 {[%clk 0:02:23]}  Rd5 {[%clk 0:01:40]} 21. Nxh8 {[%clk 0:02:23]}  Rxf5 {[%clk 0:01:39]} 22. Ng6 {[%clk 0:02:24]}  Qd6 {[%clk 0:01:35]} 23. Qg3 {[%clk 0:02:24]}  Kc7 {[%clk 0:01:30]} 24. Qxd6+ {[%clk 0:02:06]}  Kxd6 {[%clk 0:01:30]} 25. f3 {[%clk 0:02:07]}  Nc4 {[%clk 0:01:22]} 26. Rde1 {[%clk 0:02:03]}  Nd5 {[%clk 0:01:18]} 27. Re2 {[%clk 0:01:38]}  Nb4 {[%clk 0:01:05]} 28. b3 {[%clk 0:01:39]}  Nb6 {[%clk 0:00:58]} 29. Re5 {[%clk 0:01:36]}  Rf7 {[%clk 0:00:55]} 30. Kd2 {[%clk 0:01:33]}  N6d5 {[%clk 0:00:51]} 31. a3 {[%clk 0:01:32]}  Na6 {[%clk 0:00:50]} 32. Rhe1 {[%clk 0:01:27]}  Nac7 {[%clk 0:00:50]} 33. R1e4 {[%clk 0:01:22]}  a5 {[%clk 0:00:44]} 34. a4 {[%clk 0:01:21]}  Nf6 {[%clk 0:00:42]} 35. Re2 {[%clk 0:01:19]}  Nfd5 {[%clk 0:00:39]} 36. Nh4 {[%clk 0:01:16]}  Kd7 {[%clk 0:00:22]} 37. g3 {[%clk 0:01:16]}  Na8 {[%clk 0:00:19]} 38. Nf5 {[%clk 0:01:13]}  Nab6 {[%clk 0:00:20]} 39. g4 {[%clk 0:01:12]}  Na8 {[%clk 0:00:20]} 40. Re6 {[%clk 0:01:11]}  Nac7 {[%clk 0:00:18]} 41. Rg6 {[%clk 0:01:10]}  Kc8 {[%clk 0:00:19]} 42. Rxg7 {[%clk 0:01:10]} 1-0


[Site "https://www.chess.com"]

[Event "Titled Tuesday Blitz March 28 Late 2023"]
[White "Lewtak, Damian"]
[Black "Paravyan, David"]
[WhiteFideId "1141724"]
[BlackFideId "4194985"]
[WhiteElo "2302"]
[BlackElo "2577"]
[Result "0-1"]
[Round "03"]
[TimeControl "180+2"]
[Date "2023.03.28"]
[WhiteClock "0:00:56"]
[BlackClock "0:01:56"]

1. e4 {[%clk 0:03:00]}  e5 {[%clk 0:02:59]} 2. Nf3 {[%clk 0:03:01]}  Nf6 {[%clk 0:03:00]} 3. Nxe5 {[%clk 0:03:01]}  d6 {[%clk 0:03:00]} 4. Nf3 {[%clk 0:03:01]}  Nxe4 {[%clk 0:03:01]} 5. d4 {[%clk 0:03:01]}  d5 {[%clk 0:03:01]} 6. Bd3 {[%clk 0:03:01]}  Bd6 {[%clk 0:03:01]} 7. O-O {[%clk 0:02:54]}  O-O {[%clk 0:03:02]} 8. c4 {[%clk 0:02:54]}  c6 {[%clk 0:03:02]} 9. Nbd2 {[%clk 0:02:48]}  Bf5 {[%clk 0:02:45]} 10. Re1 {[%clk 0:02:33]}  Nxf2 {[%clk 0:02:44]} 11. Kxf2 {[%clk 0:02:31]}  Bxd3 {[%clk 0:02:44]} 12. Qb3 {[%clk 0:02:27]}  dxc4 {[%clk 0:02:41]} 13. Qxb7 {[%clk 0:02:25]}  Qd7 {[%clk 0:02:23]} 14. Qxa8 {[%clk 0:02:12]}  Na6 {[%clk 0:02:21]} 15. Qxf8+ {[%clk 0:02:07]}  Bxf8 {[%clk 0:02:18]} 16. b3 {[%clk 0:02:05]}  Nb4 {[%clk 0:02:11]} 17. Nxc4 {[%clk 0:02:04]}  Bxc4 {[%clk 0:02:08]} 18. bxc4 {[%clk 0:02:05]}  Nd3+ {[%clk 0:02:08]} 19. Ke2 {[%clk 0:01:58]}  Nxe1 {[%clk 0:02:08]} 20. Kxe1 {[%clk 0:01:58]}  Qe6+ {[%clk 0:02:08]} 21. Kf2 {[%clk 0:01:52]}  Qxc4 {[%clk 0:02:06]} 22. Be3 {[%clk 0:01:49]}  f6 {[%clk 0:02:06]} 23. h4 {[%clk 0:01:41]}  h5 {[%clk 0:02:05]} 24. a4 {[%clk 0:01:35]}  a5 {[%clk 0:02:05]} 25. Bd2 {[%clk 0:01:27]}  Bb4 {[%clk 0:02:01]} 26. Rc1 {[%clk 0:01:25]}  Qa2 {[%clk 0:02:00]} 27. Ke2 {[%clk 0:01:18]}  Qxa4 {[%clk 0:01:59]} 28. Kd3 {[%clk 0:00:59]}  Qb5+ {[%clk 0:01:58]} 29. Ke4 {[%clk 0:00:56]}  Bxd2 {[%clk 0:01:56]} 0-1


[Site "https://www.chess.com"]